[Event "1000 GM Labor Day Super Swiss 2024"]
[Site "San Jose"]
[Date "2024.09.04"]
[Round "9.1"]
[White "Cordova, Emilio"]
[Black "Mikaelyan, Arman"]
[Result "1/2-1/2"]
[Annotator "TA"]
[ECO "D45"]
[WhiteElo "2519"]
[BlackElo "2529"]
[PlyCount "61"]
[EventDate "2024.08.30"]
[EventType "swiss"]
[EventCountry "USA"]
[SourceTitle "playchess.com"]
[Source "ChessBase"]
[SourceQuality "1"]
[TimeControl "5400+30"]

{[%evp 11,61,8,8,14,16,10,10,0,0,0,0,0,0,0,25,0,0,0,0,0,0,0,0,19,22,0,0,-8,0,-5,0,0,-10,-20,-6,0,-8,-4,-1,-10,2,4,0,8,25,23,15,28,17,0,0,0]} 1. Nf3 {[%emt 0:00:11]} Nf6 {[%emt 0:02:50]} 2. e3 {[%emt 0:00:46]} d5 {[%emt 0:00:49]} 3. c4 {[%emt 0:00:12]} c6 {[%emt 0:00:13]} 4. Nc3 {[%emt 0:00:24]} Nbd7 {[%emt 0:00:23]} 5. cxd5 {[%emt 0:00:35]} cxd5 {[%emt 0:00:06]} 6. d4 {[%emt 0:00:36]} e6 {[%emt 0:00:28]} 7. Bd3 {[%emt 0:01:22]} b6 {[%emt 0:05:31]} 8. O-O {[%emt 0:02:45]} Bb7 {[%emt 0:02:25]} 9. Ne5 {[%emt 0:02:11]} Nxe5 {[%emt 0:04:44]} 10. dxe5 {[%emt 0:01:44]} Nd7 {[%emt 0:00:15]} 11. f4 {[%emt 0:00:17][%cal Bf2f4,Bf4f5][%mdl 32]} Be7 {[%emt 0:00:52]} 12. Ne2 {[%emt 0:02:45][%cal Bc3e2,Be2d4,Bd4f5][%mdl 32]} Qc8 {[%emt 0:13:41]} 13. Nd4 {[%emt 0:12:02]} Ba6 {[%emt 0:02:48]} 14. Bxa6 {[%emt 0:11:50]} Qxa6 {[%emt 0:00:25]} 15. f5 {[%emt 0:00:32]} Nxe5 {[%emt 0:08:37]} 16. fxe6 {[%emt 0:00:34]} O-O {[%emt 0:04:32]} 17. Nf5 {[%emt 0:04:26][%csl LRd5,LRe7]} Bf6 {[%emt 0:03:32]} 18. exf7+ {[%emt 0:09:45]} ({Don't play} 18. Qxd5 Rad8 19. exf7+ Rxf7 $15) (18. e7 $5 Rfe8 19. Nh6+ (19. Qxd5 Qd3 $18) 19... gxh6 20. Rxf6 $14) 18... Nxf7 {[%emt 0:08:43]} 19. Qxd5 {[%emt 0:00:28][%cal Of5h6]} Rad8 {[%emt 0:00:32]} 20. Qb3 {[%emt 0:00:58]} Qd3 {[%emt 0:12:48]} 21. Qxd3 {[%emt 0:12:48]} Rxd3 {[%emt 0:00:27]} 22. a4 {[%emt 0:00:11]} a5 {[%emt 0:01:56][%mdl 1024] Black has compensation.} 23. Rb1 {[%emt 0:06:59]} g6 {[%emt 0:03:06]} 24. Ng3 {[%emt 0:04:18]} Be7 {[%emt 0:00:06] next ...Ne5 is good for Black.} 25. Ne4 {[%emt 0:04:41]} Nd6 {[%emt 0:01:37]} 26. Rxf8+ {[%emt 0:01:54]} Bxf8 {[%emt 0:03:06]} 27. Nc3 {[%emt 0:00:18]} Nc4 {[%emt 0:04:18][%cal Of8g7]} 28. Kf2 {[%emt 0:00:34]} Na3 $1 {[%emt 0:01:08]} 29. Ra1 {[%emt 0:00:46][%cal Of2e2] [#] And now Ke2! would win.} (29. Ke2 Rxc3 30. bxa3 Bc5 $17) 29... Nc2 {[%emt 0:00:27]} 30. Rb1 {[%emt 0:00:04]} Na3 $1 {[%emt 0:00:06]} 31. Ra1 {[%emt 0:00:04] An interesting draw.   Weighted Error Value: White=0.04 (flawless) /Black=0.03 (flawless) .  OK:         	White=15    	Black=10     Best:        	---       	Black=1      Strong:       	---       	Black=2} ({Reject} 31. Ke2 Rxc3 32. bxa3 Bc5 $17) 1/2-1/2

[Event "1000 GM Labor Day Super Swiss 2024"]
[Site "San Jose"]
[Date "2024.09.04"]
[Round "9.2"]
[White "Quesada Perez, Yasser"]
[Black "Chen, Ryo"]
[Result "1-0"]
[Annotator "TA"]
[ECO "B51"]
[WhiteElo "2581"]
[BlackElo "2408"]
[PlyCount "89"]
[EventDate "2024.08.30"]
[EventType "swiss"]
[EventCountry "USA"]
[SourceTitle "playchess.com"]
[Source "ChessBase"]
[SourceQuality "1"]
[TimeControl "5400+30"]

{[%evp 11,89,16,13,13,3,14,6,12,10,16,30,12,15,18,16,-24,0,-7,-12,-23,0,0,12,8,10,12,18,19,10,3,11,0,12,13,14,-7,7,-5,0,-13,0,1,4,10,8,6,7,0,0,-29,0,0,0,0,0,0,0,0,208,212,579,579,579,579,579,579,579,579,1237,1192,1180,1022,1304,1187,2475,2216,8430,7689,5122,1168]} 1. e4 {[%emt 0:00:02]} c5 {[%emt 0:00:06]} 2. Nc3 {[%emt 0:00:07]} Nc6 {[%emt 0:00:49]} 3. Nf3 {[%emt 0:00:38]} d6 {[%emt 0:00:11]} 4. Bb5 {[%emt 0:00:22]} e5 {[%emt 0:11:46]} 5. d3 {[%emt 0:00:10]} Be7 {[%emt 0:03:50]} 6. Nd5 {[%emt 0:06:10] B51: Sicilian: Moscow Variation (3 Bb5+) without 3...Bd7.} Nf6 {[%emt 0:02:02]} 7. Bxc6+ {[%emt 0:00:20]} bxc6 {[%emt 0:00:08]} 8. Nxe7 {[%emt 0:00:07]} Qxe7 {[%emt 0:00:05]} 9. Nd2 $146 {[%emt 0:00:10]} ({Predecessor:} 9. Bg5 O-O 10. Nd2 Qe6 11. O-O Ne8 12. f4 f6 13. f5 Qf7 14. Be3 Rb8 15. b3 {1-0 Cerdan Herraez,M (1830)-Harutyunyan,T (1885) Mislata op-C 20th 2012 (7)}) 9... O-O {[%emt 0:11:19]} 10. O-O {[%emt 0:00:14]} Nd7 {[%emt 0:12:39]} 11. Nc4 {[%emt 0:26:45]} f5 {[%emt 0:14:25]} 12. exf5 {[%emt 0:00:38]} Rxf5 {[%emt 0:39:10]} 13. f4 {[%emt 0:00:06]} Nb6 {[%emt 0:00:00]} 14. Na5 {[%emt 0:02:23]} Bd7 {[%emt 0:00:00]} 15. Qe2 {[%emt 0:07:51]} Raf8 {[%emt 0:00:00]} 16. Bd2 {[%emt 0:01:11]} Nd5 {[%emt 0:00:00]} 17. fxe5 {[%emt 0:04:52]} Rxe5 {[%emt 0:00:00]} 18. Rxf8+ {[%emt 0:00:06]} Qxf8 {[%emt 0:00:00]} 19. Qf2 {[%emt 0:00:36]} Rf5 {[%emt 0:00:00]} 20. Qg3 {[%emt 0:01:35]} Rf6 {[%emt 0:00:00]} 21. Re1 {[%emt 0:01:57]} Rg6 {[%emt 0:00:00]} 22. Qh4 {[%emt 0:00:41]} h6 {[%emt 0:00:00]} 23. Qf2 {[%emt 0:05:31]} (23. Rf1 {is more complex.} Qe8 24. Nc4 Qe2 25. Qf2) 23... Rf6 {[%emt 0:00:00]} 24. Qg3 {[%emt 0:00:05]} Kh7 {[%emt 0:01:52]} 25. Qh4 {[%emt 0:09:53]} Nf4 {[%emt 0:01:14]} 26. Bxf4 $1 {[%emt 0:00:45]} Rxf4 {[%emt 0:00:03]} 27. Qg3 $1 {[%emt 0:00:04]} ({Don't blunder} 27. Qe7 $2 Rf1+ 28. Rxf1 Qxe7 $19) 27... Ra4 {[%emt 0:00:37]} 28. Nc4 {[%emt 0:00:10]} Rxa2 {[%emt 0:00:29]} 29. Rf1 {[%emt 0:02:33]} Qe7 {[%emt 0:00:47]} 30. h4 {[%emt 0:00:06]} Be6 {[%emt 0:01:43]} 31. Nxd6 {[%emt 0:10:49]} Rxb2 {[%emt 0:00:52]} 32. Qe5 {[%emt 0:00:05]} Rxc2 {[%emt 0:00:12]} 33. Qe4+ {[%emt 0:00:04]} Kh8 {[%emt 0:01:26]} 34. Nf5 {[%emt 0:02:23]} Qe8 $2 {[%emt 0:01:01] [#]} (34... Qd7 $11 35. Ne3 Rc3 36. Rf8+ Bg8) 35. h5 $1 $18 {[%emt 0:03:14]} Qg8 $2 {[%emt 0:00:31]} (35... Qxh5 {is tougher.} 36. Qxe6 Qg4 37. Qxc6 Re2) 36. Ne7 $18 {[%emt 0:01:38]} Bd5 {[%emt 0:00:34] [#]} 37. Nxd5 $1 {[%emt 0:00:13]} (37. Ng6+ Kh7 38. Nf8+ Kh8 39. Ng6+ Kh7 40. Nf8+ Kh8 41. Ng6+ $11) 37... cxd5 {[%emt 0:00:14]} 38. Qe7 {[%emt 0:00:04]} Kh7 {[%emt 0:00:07]} 39. Rf8 $1 {[%emt 0:00:17]} ({Weaker is} 39. Qxa7 c4 40. dxc4 dxc4 $11) 39... Re2 {[%emt 0:00:22]} 40. Qd8 {[%emt 0:00:09]} Qxf8 {[%emt 0:00:09]} 41. Qxf8 {[%emt 0:00:05]} Re5 {[%emt 0:00:05]} 42. g4 {[%emt 0:01:07]} c4 {[%emt 0:00:50]} 43. d4 {[%emt 0:00:07]} Rg5 {[%emt 0:00:07]} 44. Kf2 {[%emt 0:00:12]} a5 {[%emt 0:00:30]} 45. Kf3 {[%emt 0:00:13]} 1-0

[Event "1000 GM Labor Day Super Swiss 2024"]
[Site "San Jose"]
[Date "2024.09.04"]
[Round "9.3"]
[White "Macovei, Andrei"]
[Black "Corrales Jimenez, Fidel"]
[Result "0-1"]
[Annotator "TA"]
[ECO "B66"]
[WhiteElo "2466"]
[BlackElo "2564"]
[PlyCount "56"]
[EventDate "2024.08.30"]
[EventType "swiss"]
[EventCountry "USA"]
[SourceTitle "playchess.com"]
[Source "ChessBase"]
[SourceQuality "1"]
[TimeControl "5400+30"]

{[%evp 16,56,29,37,47,37,60,35,30,27,42,35,56,38,58,27,22,29,42,0,0,0,0,18,15,0,0,0,0,18,37,0,8,5,15,-524,-529,-519,-534,-518,-503,-928,-494]} 1. e4 {[%emt 0:00:30]} c5 {[%emt 0:00:30]} 2. Nf3 {[%emt 0:00:30]} d6 {[%emt 0:00:30]} 3. d4 {[%emt 0:00:30]} cxd4 {[%emt 0:00:30]} 4. Nxd4 {[%emt 0:00:30]} Nf6 {[%emt 0:00:30]} 5. Nc3 {[%emt 0:00:30]} Nc6 {[%emt 0:00:30]} 6. Bg5 {[%emt 0:00:30]} e6 {[%emt 0:00:30]} 7. Qd2 {[%emt 0:00:30]} a6 {[%emt 0:00:30]} 8. O-O-O {[%emt 0:00:30]} Be7 {[%emt 0:00:30]} 9. Bxf6 {[%emt 0:00:30]} gxf6 {[%emt 0:00:30]} 10. f4 {[%emt 0:00:30]} Bd7 {[%emt 0:00:30]} 11. Kb1 {[%emt 0:00:30]} Nxd4 {[%emt 0:00:30] White is slightly better.} 12. Qxd4 {[%emt 0:00:30]} Qa5 {[%emt 0:00:30] [#]} 13. f5 $1 {[%emt 0:00:30]} O-O-O {[%emt 0:00:30][%cal Ba8d8,Bd8c8,Bc8c5][%mdl 32]} (13... Qc5 14. Qd2) 14. Be2 {[%emt 0:00:30]} Kb8 {[%emt 0:00:30]} 15. Bc4 {[%emt 0:00:30]} Rc8 {[%emt 0:00:30]} 16. Bb3 {[%emt 0:00:30]} Rc5 {[%emt 0:00:30]} 17. Ne2 {[%emt 0:00:30]} Re5 {[%emt 0:00:30]} 18. Nf4 {[%emt 0:00:30]} Bc6 {[%emt 0:00:30]} 19. fxe6 {[%emt 0:00:30]} fxe6 {[%emt 0:00:30]} 20. Nxe6 {[%emt 0:00:30]} Bxe4 {[%emt 0:00:30]} 21. Nf4 {[%emt 0:00:30]} Rc8 {[%emt 0:00:30]} 22. Rhf1 {[%emt 0:00:30]} f5 {[%emt 0:00:30]} 23. g3 {[%emt 0:00:30]} (23. Nd3 {is more complex.} Rb5 24. Be6 Rc7 25. g4) 23... Rb5 {[%emt 0:00:30][%cal Ob5b3] White must now prevent ...Rxb3!} 24. Nd3 {[%emt 0:00:30]} h5 {[%emt 0:00:30]} 25. Nf2 $2 {[%emt 0:00:30][%mdl 8192] [#] This costs White the game.} (25. Be6 $11 {and White is okay.} Rc7 26. Rf2) 25... Rxb3 $1 $19 {[%emt 0:00:30][%mdl 512] Black is clearly winning.} 26. Nxe4 {[%emt 0:00:30]} Rb4 {[%emt 0:00:30]} 27. Qd2 {[%emt 0:00:30]} fxe4 {[%emt 0:00:30]} 28. Rf7 {[%emt 0:00:30]} (28. c3 $142 Rb5 29. Rde1) 28... Rc7 {[%emt 0:00:30] Weighted Error Value: White=0.63/Black=0.07 (flawless) .  Loses game:     	White=1     	---        Mistake:       	White=1     	---        Inaccurate:     	White=3     	Black=1      OK:         	White=5     	Black=8      Brilliant:      	---       	Black=1} 0-1

[Event "1000 GM Labor Day Super Swiss 2024"]
[Site "San Jose"]
[Date "2024.09.04"]
[Round "9.4"]
[White "Sheng, Joshua"]
[Black "Hevia Alejano, Carlos Antonio"]
[Result "1/2-1/2"]
[Annotator "TA"]
[ECO "C02"]
[WhiteElo "2474"]
[BlackElo "2414"]
[PlyCount "84"]
[EventDate "2024.08.30"]
[EventType "swiss"]
[EventCountry "USA"]
[SourceTitle "playchess.com"]
[Source "ChessBase"]
[SourceQuality "1"]
[TimeControl "5400+30"]

{[%evp 19,84,1,130,64,63,60,75,43,43,33,39,14,16,12,8,21,38,38,50,44,45,45,58,47,50,33,34,37,36,35,51,51,51,60,130,38,134,0,125,0,31,31,31,16,125,-131,-96,-97,-82,-91,0,0,0,0,0,-767,0,0,307,0,0,0,0,0,0,0,0]} 1. e4 {[%emt 0:10:12]} e6 {[%emt 0:00:08]} 2. d4 {[%emt 0:00:04]} d5 {[%emt 0:00:06]} 3. e5 {[%emt 0:01:02]} c5 {[%emt 0:00:19]} 4. c3 {[%emt 0:00:02]} Nc6 {[%emt 0:00:48]} 5. Nf3 {[%emt 0:00:03]} Qb6 {[%emt 0:02:40]} 6. a3 {[%emt 0:00:07]} c4 {[%emt 0:03:39]} 7. Nbd2 {[%emt 0:00:10]} Na5 {[%emt 0:00:21]} 8. Be2 {[%emt 0:00:26]} Bd7 {[%emt 0:00:05]} 9. O-O {[%emt 0:00:04]} Ne7 {[%emt 0:00:13][%cal Bg8e7,Be7c6,Bc6a5,Ba5c4][%mdl 32]} 10. Rb1 {[%emt 0:02:31]} Nb3 {[%emt 0:14:44]} (10... Nf5 $11 {remains equal.}) 11. Nxb3 {[%emt 0:00:19]} (11. Bxc4 $1 $16 Nxc1 (11... dxc4 $2 12. Nxc4 Qa6 13. Nd6+ Kd8 14. Qxb3 $18) 12. Qxc1) 11... Ba4 $14 {[%emt 0:00:06] [#]} 12. Nfd2 $1 {[%emt 0:14:31]} Nc6 {[%emt 0:00:35][%cal Oc6a5] [#]} (12... Rc8 13. Qe1) 13. Qe1 $1 {[%emt 0:02:18] White is better.} cxb3 {[%emt 0:00:21]} 14. f4 {[%emt 0:02:13]} g6 {[%emt 0:02:38]} 15. Bd1 {[%emt 0:00:59]} h5 {[%emt 0:03:48]} 16. Rf3 {[%emt 0:01:31]} Na5 {[%emt 0:03:21]} 17. Nf1 {[%emt 0:10:03]} Nc4 {[%emt 0:12:59]} 18. Be3 {[%emt 0:01:51][%cal Bc1e3,Be3f2,Bf2h4,Bh4f6][%mdl 32]} O-O-O {[%emt 0:07:14]} 19. Bf2 {[%emt 0:01:34]} Kb8 {[%emt 0:00:06]} 20. Bh4 {[%emt 0:01:01]} Rc8 {[%emt 0:00:01]} 21. Bf6 {[%emt 0:01:40]} Rg8 {[%emt 0:00:06][%cal Of8a3]} 22. Nd2 {[%emt 0:01:12]} Nxd2 {[%emt 0:06:27]} 23. Qxd2 {[%emt 0:00:04]} a5 {[%emt 0:03:04]} 24. Qf2 {[%emt 0:00:56]} Bg7 {[%emt 0:04:35]} 25. Qh4 {[%emt 0:03:17]} Bxf6 {[%emt 0:00:25]} 26. Qxf6 {[%emt 0:00:59]} Be8 {[%emt 0:04:33]} (26... Qc7 $1 $14) 27. Kf2 {[%emt 0:00:30]} (27. Rg3 $16) 27... Bd7 (27... Ka7 $14) 28. Kg1 {[%emt 0:44:51]} Be8 $1 {[%emt 0:01:00]} 29. Kf2 {[%emt 0:00:00]} (29. Rg3 $16) 29... a4 {[%emt 0:00:30]} 30. Re3 {[%emt 0:00:00]} Bb5 {[%emt 0:00:30]} 31. Bf3 {[%emt 0:00:00]} Rc4 {[%emt 0:00:30]} (31... Qc7 $11) 32. Ke1 $2 {[%emt 0:00:00][%mdl 8192] [#]} (32. Bxd5 $16 Rc7 33. Bf3) 32... Rxd4 $1 $17 {[%emt 0:00:30][%mdl 512]} 33. cxd4 {[%emt 0:00:00]} Qxd4 {[%emt 0:00:30]} 34. Kf2 {[%emt 0:00:00] [#]} Qd2+ {[%emt 0:00:30]} ({Black should try} 34... Rc8 $1 $17 {[%cal Rc8c2]} 35. Rbe1 (35. Qxf7 $2 Rc2+ 36. Kg3 Qxe3 $19) 35... Qxb2+ 36. Kg3 Qd2 (36... Qxa3 37. Qxf7 Rc6 38. Qxg6 $11) 37. Qxf7 Rc6) 35. Re2 {[%emt 0:00:00]} Bxe2 {[%emt 0:00:30]} 36. Bxe2 {[%emt 0:00:00]} Rc8 {[%emt 0:00:30] aiming for ...Rc2.} 37. Re1 $2 {[%emt 0:00:00][%mdl 8192]} (37. Qxf7 $11 Ka7 38. Rd1 (38. Qxg6 Qxf4+ 39. Ke1 Rc1+ 40. Rxc1 Qxc1+ 41. Kf2 Qxb2 $15) (38. Qxe6 Rc2 $15) 38... Qxb2 39. Qxe6) 37... d4 $2 {[%emt 0:00:30]} (37... Qxb2 $19 38. Kf1 Qxa3) 38. Qxf7 {[%emt 0:00:00]} Rc1 $2 {[%emt 0:00:30][%mdl 8192]} (38... d3 $11 {and Black stays safe.} 39. Qxe6 dxe2) 39. Rxc1 $2 {[%emt 0:00:00]} (39. Qe8+ $18 Ka7 40. Qxa4+ Kb8 41. Qb4 Qe3+ 42. Kf1) 39... Qe3+ $11 {[%emt 0:00:30] The position is equal.} 40. Ke1 {[%emt 0:00:00] Intending Rc5 and mate.} Qxc1+ {[%emt 0:00:30]} 41. Kf2 {[%emt 0:00:00]} (41. Bd1 $5 Ka7 $8 42. Qxg6 (42. Qxe6 Qe3+ 43. Kf1 Qxf4+ 44. Bf3 Qc1+ 45. Kf2 Qe3+ 46. Kg3 Qe1+ 47. Kf4 Qe3+ 48. Kg3 Qe1+ 49. Kf4 Qe3+ 50. Kg3 $11) 42... Qe3+ 43. Kf1 Qxf4+ 44. Ke1 Qe3+ 45. Be2 $11 (45. Kf1 Qf4+ 46. Ke1 Qe3+ 47. Be2 Qc1+ 48. Kf2 Qe3+ 49. Ke1 Qc1+ 50. Kf2 Qe3+ 51. Ke1 $11)) 41... Qe3+ {[%emt 0:00:30]} 42. Kf1 {[%emt 0:00:00]} Qc1+ {[%emt 0:00:30] Weighted Error Value: White=0.64/Black=0.50.  Loses game:     	White=1     	---        Missed win:     	White=1     	Black=1      Mistake:       	White=3     	Black=4      Inaccurate:     	White=1     	Black=1      OK:         	White=5     	Black=11     Best:        	---       	Black=3      Strong:       	White=1     	Black=1      Brilliant:      	---       	Black=1} 1/2-1/2

[Event "1000 GM Labor Day Super Swiss 2024"]
[Site "San Jose"]
[Date "2024.09.04"]
[Round "9.5"]
[White "Harsha Bharathakoti"]
[Black "Yoo, Christopher Woojin"]
[Result "1/2-1/2"]
[Annotator "TA"]
[ECO "E32"]
[WhiteElo "2550"]
[BlackElo "2616"]
[PlyCount "170"]
[EventDate "2024.08.30"]
[EventType "swiss"]
[EventCountry "USA"]
[SourceTitle "playchess.com"]
[Source "ChessBase"]
[SourceQuality "1"]
[TimeControl "5400+30"]

{[%evp 9,170,15,23,19,47,22,25,27,17,13,9,16,15,9,7,12,23,13,45,0,0,0,0,0,0,0,0,0,0,0,0,0,0,0,0,-7,-4,-5,-5,-6,0,0,0,-21,-22,-11,0,-11,-8,-8,-5,-10,-9,-10,-10,-10,-8,-17,-8,-8,-10,-23,-16,-16,-16,-16,-16,-16,-4,-4,-4,-4,0,-7,0,-8,-4,-8,0,-37,-4,-4,-4,-8,0,-2,-2,-4,-6,-6,0,-12,-5,-6,-4,-5,-5,-14,-14,-14,0,0,0,0,0,0,0,0,0,0,0,0,0,0,0,0,0,0,0,0,0,-13,-12,-13,0,0,0,0,20,-29,-29,-29,-29,-29,-29,-29,-29,-29,-29,-29,-29,-29,-29,-29,0,-29,-29,-29,-29,-29,-29,-29,-29,-29,-29,-29,-29,-29,-29,-44,-44,-54,-29]} 1. d4 {[%emt 0:02:42]} Nf6 {[%emt 0:02:05]} 2. c4 {[%emt 0:00:09]} e6 {[%emt 0:00:18]} 3. Nc3 {[%emt 0:00:15]} Bb4 {[%emt 0:00:05]} 4. Qc2 {[%emt 0:00:19]} h6 {[%emt 0:03:55]} 5. a3 {[%emt 0:02:16]} Bxc3+ {[%emt 0:00:06]} 6. Qxc3 {[%emt 0:00:04]} b6 {[%emt 0:00:12]} 7. Nf3 {[%emt 0:04:00]} (7. Qg3 $5) 7... Bb7 {[%emt 0:00:32]} 8. e3 {[%emt 0:01:26] White has an edge.} O-O {[%emt 0:02:27]} 9. Be2 {[%emt 0:06:38]} d5 {[%emt 0:09:03]} 10. O-O {[%emt 0:20:16]} dxc4 {[%emt 0:03:41]} 11. Bxc4 {[%emt 0:10:59]} Ne4 {[%emt 0:10:51]} 12. Qc2 {[%emt 0:02:36]} Nd6 {[%emt 0:02:02] [#] ...Nxc4 is the strong threat.} 13. Be2 {[%emt 0:04:52]} Qe7 {[%emt 0:04:49]} 14. b3 {[%emt 0:05:10]} Nd7 {[%emt 0:01:44][%cal Bb8d7,Bd7c5,Bc5e4][%mdl 32]} 15. Bb2 {[%emt 0:00:23]} (15. Qxc7 $2 {perishes.} Rfc8 $19) 15... c5 {[%emt 0:02:54]} 16. dxc5 {[%emt 0:06:38]} Nxc5 {[%emt 0:00:29]} 17. b4 {[%emt 0:02:09]} Nce4 {[%emt 0:01:34]} 18. Rac1 {[%emt 0:01:43]} Rac8 {[%emt 0:02:03]} 19. Qb1 {[%emt 0:02:10]} Bd5 {[%emt 0:06:04]} 20. Rxc8 {[%emt 0:00:32]} Rxc8 {[%emt 0:00:05]} 21. Rc1 {[%emt 0:00:02] Wards off Nc3} Qb7 {[%emt 0:00:50]} 22. Rxc8+ {[%emt 0:05:18]} Qxc8 {[%emt 0:01:34]} 23. Bd3 {[%emt 0:00:04]} f6 {[%emt 0:03:33]} 24. Qc1 {[%emt 0:05:55]} Qxc1+ {[%emt 0:01:19]} 25. Bxc1 {[%emt 0:00:06]} e5 {[%emt 0:02:34]} 26. Bxe4 {[%emt 0:07:14]} Nxe4 $11 {[%emt 0:02:16][%mdl 4096] Endgame. KBN-KBN} 27. Nd2 {[%emt 0:00:44]} Nc3 {[%emt 0:01:20]} 28. Kf1 {[%emt 0:00:43] Prevents Ne2} Kf7 {[%emt 0:05:34]} 29. Bb2 {[%emt 0:00:19]} Nb5 {[%emt 0:01:20]} 30. e4 {[%emt 0:00:39]} Bc6 {[%emt 0:00:06]} 31. Ke2 {[%emt 0:00:35]} Nd6 {[%emt 0:01:09]} 32. f3 {[%emt 0:00:35][%cal Bf2f3,Bf3f4][%mdl 32]} Ke6 {[%emt 0:02:08]} 33. Ke3 {[%emt 0:01:15]} g5 {[%emt 0:00:44]} 34. Ba1 {[%emt 0:00:55]} h5 {[%emt 0:01:24]} 35. g3 {[%emt 0:02:36]} g4 {[%emt 0:02:49]} 36. f4 $1 {[%emt 0:00:40]} Bb5 {[%emt 0:02:56]} 37. Bc3 {[%emt 0:01:21]} Nf7 {[%emt 0:00:34]} 38. Bb2 {[%emt 0:00:23]} Kd7 {[%emt 0:00:39]} 39. Ba1 {[%emt 0:01:26]} Kc6 {[%emt 0:00:57]} 40. Bb2 {[%emt 0:02:31]} Kb7 {[%emt 0:01:06]} 41. Ba1 {[%emt 0:00:25]} Kc6 {[%emt 0:01:09]} 42. Bb2 {[%emt 0:00:02]} Kd6 {[%emt 0:00:16]} 43. Ba1 {[%emt 0:00:07]} Ke6 {[%emt 0:00:09]} 44. Bc3 {[%emt 0:00:08]} Nd8 {[%emt 0:00:55]} 45. Bb2 {[%emt 0:00:12]} Nb7 {[%emt 0:00:26]} 46. Ba1 {[%emt 0:00:12]} Nd8 {[%emt 0:00:52]} 47. Bb2 {[%emt 0:00:06]} Nc6 {[%emt 0:00:12]} 48. Bc3 {[%emt 0:00:15]} Ne7 {[%emt 0:01:08]} 49. Bb2 {[%emt 0:00:36]} Ba4 {[%emt 0:01:08]} 50. Ba1 {[%emt 0:02:00]} Nc6 {[%emt 0:01:10]} 51. Bb2 {[%emt 0:00:53]} Nb8 {[%emt 0:00:24]} 52. Ba1 {[%emt 0:00:17]} Nd7 {[%emt 0:00:12]} 53. Bb2 {[%emt 0:00:33]} Bc2 {[%emt 0:00:44]} 54. Bc3 {[%emt 0:01:21]} exf4+ {[%emt 0:01:29]} 55. Kxf4 {[%emt 0:00:05]} Nf8 {[%emt 0:00:21]} 56. Ke3 {[%emt 0:00:39]} Ng6 {[%emt 0:00:23]} 57. Nc4 {[%emt 0:00:14]} Ne7 {[%emt 0:00:30]} 58. Kf4 {[%emt 0:01:56]} Bd3 {[%emt 0:02:44]} 59. Nd2 {[%emt 0:00:05]} Ng6+ {[%emt 0:01:39]} 60. Ke3 {[%emt 0:00:02]} Bc2 {[%emt 0:00:05]} 61. Nc4 {[%emt 0:00:07]} f5 {[%emt 0:00:18]} 62. exf5+ {[%emt 0:00:06]} Bxf5 {[%emt 0:00:04]} 63. Kd4 {[%emt 0:01:57]} Bb1 {[%emt 0:01:51]} 64. Nd2 {[%emt 0:00:12]} Bc2 {[%emt 0:00:04]} 65. Ke3 {[%emt 0:01:19]} Kd5 {[%emt 0:01:41]} 66. Bg7 {[%emt 0:00:21]} Ke6 {[%emt 0:00:23]} 67. Ba1 {[%emt 0:00:22]} Ba4 {[%emt 0:00:31]} 68. Ne4 {[%emt 0:00:37]} Ne7 {[%emt 0:00:47]} 69. Nf6 {[%emt 0:00:16]} (69. Kf4 {was preferrable.}) 69... Nd5+ {[%emt 0:00:25]} 70. Nxd5 {[%emt 0:00:03]} Kxd5 {[%emt 0:00:03] KB-KB} 71. Kd3 {[%emt 0:00:44]} Bb5+ {[%emt 0:00:07]} 72. Kc2 {[%emt 0:00:45]} Kc4 {[%emt 0:00:38]} 73. Be5 {[%emt 0:00:04]} Ba4+ {[%emt 0:00:03]} 74. Kb2 {[%emt 0:00:04]} Bc6 {[%emt 0:03:01]} 75. Bf6 {[%emt 0:00:05]} Kd3 {[%emt 0:00:14]} 76. Be7 {[%emt 0:00:05]} Kc4 {[%emt 0:02:16]} 77. Bf6 {[%emt 0:00:05]} Kd5 {[%emt 0:00:38]} 78. Kc3 {[%emt 0:00:07]} Ke4 {[%emt 0:00:08]} 79. Kb2 {[%emt 0:00:05]} Kf3 {[%emt 0:00:05]} 80. Bh4 {[%emt 0:00:05]} Kg2 {[%emt 0:00:04]} 81. Kc3 {[%emt 0:00:04]} Kxh2 {[%emt 0:00:25]} 82. Kb2 {[%emt 0:00:04]} Kg2 {[%emt 0:00:59]} 83. Kc3 {[%emt 0:00:03]} Ba4 {[%emt 0:01:05]} 84. Kb2 {[%emt 0:00:03]} Kf3 {[%emt 0:00:31]} 85. Kc3 {[%emt 0:00:02]} Bd1 {[%emt 0:00:39] Weighted Error Value: White=0.04 (flawless) /Black=0.04 (flawless) .  Mistake:       	White=1     	---        Inaccurate:     	White=2     	Black=3      OK:         	White=34    	Black=23     Best:        	White=1     	Black=1      Strong:       	White=1     	---} 1/2-1/2

[Event "1000 GM Labor Day Super Swiss 2024"]
[Site "San Jose"]
[Date "2024.09.04"]
[Round "9.6"]
[White "Batchuluun, Tsegmed"]
[Black "Delgado Ramirez, Neuris"]
[Result "1/2-1/2"]
[Annotator "TA"]
[ECO "E11"]
[WhiteElo "2458"]
[BlackElo "2485"]
[PlyCount "38"]
[EventDate "2024.08.30"]
[EventType "swiss"]
[EventCountry "USA"]
[SourceTitle "playchess.com"]
[Source "ChessBase"]
[SourceQuality "1"]
[TimeControl "5400+30"]

{[%evp 11,38,24,30,25,46,21,29,33,49,2,8,0,0,9,23,24,32,31,32,6,0,9,13,20,15,14,17,22,18]} 1. d4 {[%emt 0:00:03]} Nf6 {[%emt 0:22:32]} 2. c4 {[%emt 0:00:06]} e6 {[%emt 0:00:05]} 3. Nf3 {[%emt 0:00:03]} Bb4+ {[%emt 0:00:05]} 4. Bd2 {[%emt 0:00:05]} a5 {[%emt 0:00:07]} 5. a3 {[%emt 0:00:51]} Bxd2+ {[%emt 0:00:28]} 6. Qxd2 {[%emt 0:00:05]} d6 {[%emt 0:00:17]} 7. Nc3 {[%emt 0:00:28]} Nbd7 {[%emt 0:00:14]} 8. g3 {[%emt 0:13:34]} b6 {[%emt 0:00:55]} 9. Bg2 {[%emt 0:00:19][%cal Of3e5] White has an edge.} Bb7 {[%emt 0:00:13]} 10. O-O {[%emt 0:00:15]} (10. Qc2 $14 {might be stronger.}) 10... Ne4 $11 {[%emt 0:00:34]} 11. Nxe4 {[%emt 0:00:04]} Bxe4 {[%emt 0:00:05]} 12. b4 {[%emt 0:00:47]} axb4 {[%emt 0:00:28]} 13. axb4 {[%emt 0:00:05]} O-O {[%emt 0:00:11]} 14. b5 {[%emt 0:08:58]} Qc8 {[%emt 0:01:09]} 15. Ra2 {[%emt 0:01:31]} Rxa2 {[%emt 0:01:25] The position is equal.} 16. Qxa2 {[%emt 0:00:04]} Qb7 {[%emt 0:00:32]} 17. Ra1 {[%emt 0:00:03]} Ra8 {[%emt 0:00:07]} 18. Qxa8+ {[%emt 0:00:23]} Qxa8 {[%emt 0:00:07]} 19. Rxa8+ {[%emt 0:00:04]} Bxa8 {[%emt 0:00:07] Weighted Error Value: White=0.10 (very precise) /Black=0.07 (flawless) .  Mistake:       	White=1     	---        Inaccurate:     	White=1     	---        OK:         	White=3     	Black=3} 1/2-1/2